bitfinex-derivatives/quotes_ETHF0:USTF0_20250101
["timestamp","ask_amount","ask_price","bid_price","bid_amount"]
[1735760740106,0.29894,3353.3,3353.2,0.4627]
[1735760740311,0.29898,3352.9,3352.8,41.2318]
[1735760740514,0.29898,3352.9,3352.8,0.4318]
[1735760740713,0.29898,3352.9,3352.7,0.29899]
[1735760741524,0.29898,3352.8,3352.7,0.29899]
[1735760742022,1.324,3353.2,3352.7,0.29899]
[1735760742220,0.29898,3352.9,3352.7,0.29899]
[1735760743021,1.324,3353.2,3352.6,41.228]
[1735760743316,0.29897,3353.1,3352.9,0.29897]
[1735760743517,0.29897,3353.0,3352.9,0.29897]
[1735760744409,0.29897,3353.0,3352.6,41.228]
[1735760744616,0.29898,3352.9,3352.7,0.29899]
[1735760745020,0.29899,3352.7,3352.6,0.428]
[1735760745619,0.29903,3352.3,3351.9,0.29906]
[1735760745817,3.00796911,3352.9,3352.2,0.29904]
[1735760745818,3.50683,3352.4,3352.2,0.29904]
[1735760746016,3.50683,3352.4,3352.3,40.8]
[1735760746321,3.50683,3352.4,3352.3,41.09903]
[1735760746322,3.2078,3352.4,3352.3,41.09903]
[1735760746516,3.2078,3352.4,3352.3,0.29903]
[1735760747119,3.50679,3352.8,3352.1,0.74762]
[1735760747314,0.299,3352.6,3352.4,0.29902]
[1735760747518,3.2078,3352.8,3352.0,40.8]
[1735760747726,1.19473,3353.0,3352.1,0.4257]
[1735760747727,0.29904,3352.2,3352.1,0.4257]
[1735760754623,3.50684,3352.2,3352.1,0.4257]
[1735760756123,3.2078,3352.2,3352.1,0.4257]
[1735760756438,3.2078,3352.6,3352.5,0.29901]
[1735760756923,3.2078,3352.6,3352.5,41.09901]
[1735760757423,0.4269,3353.3,3352.5,44.0078]
[1735760757424,3.2078,3353.2,3352.5,44.0078]
[1735760757626,0.29898,3352.9,3352.8,0.29898]
[1735760758028,3.2078,3353.2,3352.6,0.4559]
[1735760758230,0.29897,3353.1,3352.9,0.29897]
[1735760758530,0.29897,3353.0,3352.9,0.29897]
[1735760759725,0.29896,3353.1,3352.9,0.29897]
[1735760759928,0.29897,3353.0,3352.8,0.29898]
[1735760760523,3.6444,3353.2,3352.6,0.7549]
[1735760760729,0.29899,3352.7,3352.6,0.4559]
[1735760760928,0.29902,3352.5,3351.9,0.4655]
[1735760761129,3.2078,3352.3,3352.2,0.29903]
[1735760762435,3.50683,3352.3,3352.2,0.29903]
[1735760762832,0.29904,3352.2,3352.1,0.75954]
[1735760764634,0.29906,3352.0,3351.9,0.29906]
[1735760765534,0.29905,3352.1,3352.0,0.29905]
[1735760765833,0.29906,3352.0,3351.9,0.29906]
[1735760767441,0.29905,3352.1,3352.0,0.29905]
[1735760767735,0.75904,3352.2,3352.1,0.29905]
[1735760767941,0.29905,3352.1,3352.0,0.29905]
[1735760768236,0.46,3352.2,3352.0,0.29905]
[1735760768436,0.75904,3352.2,3352.0,0.29905]
[1735760769436,0.46,3352.2,3351.9,0.29906]
[1735760769632,0.29906,3352.0,3351.9,0.29906]
[1735760769833,0.46,3352.2,3351.9,0.29906]
[1735760770131,0.29905,3352.1,3352.0,40.8]
[1735760770837,0.46,3352.2,3352.0,41.09905]
[1735760770838,0.75904,3352.2,3352.0,41.09905]
[1735760771037,0.75904,3352.2,3352.1,0.29905]
[1735760772242,3.96684,3352.2,3352.1,0.29905]
[1735760772945,3.6678,3352.2,3352.0,40.8]
[1735760773339,3.6678,3352.2,3352.1,0.29905]
[1735760773540,3.96684,3352.2,3352.1,0.29905]
[1735760773938,3.96684,3352.2,3352.0,41.09905]
[1735760775043,3.6678,3352.2,3352.0,41.09905]
[1735760775237,0.29905,3352.1,3352.0,41.09905]
[1735760775442,0.29905,3352.1,3352.0,0.29905]
[1735760775640,3.96684,3352.2,3352.1,0.29905]
[1735760777545,0.46,3352.2,3352.1,0.29905]
[1735760777745,3.6678,3352.2,3352.1,0.29905]
[1735760779153,0.46,3352.2,3352.1,0.29905]
[1735760780145,0.75904,3352.2,3352.1,0.29905]
[1735760781744,0.29906,3352.0,3351.9,0.29906]
[1735760781943,0.4528,3352.1,3351.8,0.4572]
[1735760782250,0.46,3352.2,3352.1,0.29905]
[1735760783249,0.75904,3352.2,3352.1,0.29905]
[1735760783951,3.2078,3352.4,3351.9,40.8]
[1735760784242,3.2078,3352.4,3352.3,0.29903]
[1735760784644,3.50682,3352.4,3352.3,0.29903]
[1735760785650,3.2078,3352.4,3352.3,0.29903]
[1735760787545,3.2078,3352.9,3352.8,0.29898]
[1735760791148,3.2078,3352.9,3352.6,0.4432]
[1735760791455,0.29899,3352.7,3352.6,0.4432]
[1735760793850,0.9038,3352.8,3352.6,0.74219]
[1735760793851,1.20279,3352.8,3352.6,0.74219]
[1735760794158,0.76789,3352.8,3352.7,0.29899]
[1735760794351,0.4689,3352.8,3352.7,0.29899]
[1735760794552,3.50678,3352.9,3352.7,0.29899]
[1735760794952,3.50678,3352.9,3352.8,0.4669]
[1735760795655,0.29899,3352.7,3352.6,0.4432]
[1735760796055,2.26051911,3352.7,3352.3,0.4669]
[1735760796352,2.26051911,3352.7,3352.1,0.464]
[1735760796353,0.29903,3352.3,3352.2,0.4375]
[1735760797147,0.29903,3352.0,3351.9,0.4669]
[1735760797350,0.29901,3352.2,3352.1,0.29901]
[1735760797751,2.71231911,3352.4,3352.0,0.29902]
[1735760797952,0.29902,3352.0,3351.9,0.9022]
[1735760798152,0.29902,3352.0,3351.3,3.2078]
[1735760798356,0.436,3351.9,3351.6,3.2078]
[1735760798657,0.29894,3351.7,3351.6,3.2078]
[1735760799057,0.4518,3352.4,3351.6,3.2078]
[1735760799357,2.26051911,3353.2,3352.0,3.2078]
[1735760799555,1.18296,3353.4,3352.4,3.2078]
[1735760799757,0.436,3353.4,3352.8,3.2078]
[1735760800064,0.29877,3353.6,3353.3,3.2078]
[1735760800355,0.29876,3353.7,3353.3,3.50659]
[1735760800555,0.436,3353.9,3353.3,3.50659]
[1735760800856,0.73473,3353.9,3353.8,3.2078]
[1735760801263,0.97716535,3353.9,3353.8,3.2078]
[1735760801467,0.29873,3353.9,3353.8,3.2078]
[1735760801758,0.4283,3354.3,3353.8,3.2078]
[1735760801759,0.24006257,3354.1,3353.8,3.2078]
[1735760801959,0.29873,3354.0,3353.9,0.4278]
[1735760804759,0.29871,3354.2,3353.9,0.4278]
[1735760804963,0.4266,3355.0,3354.0,3.43951911]
[1735760805160,0.72524,3355.0,3354.9,3.2078]
[1735760805356,0.29864,3355.0,3354.9,3.2078]
[1735760806257,0.29863,3355.1,3354.9,3.2078]
[1735760806463,17.30233338,3356.2,3354.9,3.2078]
[1735760806464,3.2078,3357.3,3355.0,4.52103822]
[1735760806660,0.8784,3356.8,3356.7,3.2078]
[1735760806857,0.29848,3356.8,3356.7,3.2078]
[1735760807261,0.8784,3357.3,3356.7,3.2078]
[1735760807561,0.29844,3357.2,3357.1,3.2078]
[1735760808459,0.4266,3357.7,3357.1,5.46831911]
[1735760808666,1.45030564,3358.0,3357.5,3.2078]
[1735760808862,1.15192564,3358.0,3357.9,3.2078]
[1735760809065,1.45029564,3358.0,3357.9,3.2078]
[1735760810468,2.38592564,3358.0,3357.7,3.2078]
[1735760810863,1.15192564,3358.0,3357.7,3.2078]
[1735760811168,1.15192564,3358.0,3357.8,2.26051911]
[1735760811970,1.15192564,3358.0,3357.7,3.2078]
[1735760813466,1.15192564,3358.0,3357.8,2.26051911]
[1735760814066,1.15192564,3358.0,3357.8,3.18281911]
[1735760814270,0.44722564,3358.0,3357.8,3.18281911]
[1735760814461,0.01087729,3358.6,3357.8,8.18281911]
[1735760814768,0.01087729,3358.6,3358.5,3.2078]
[1735760815766,0.01087729,3358.6,3358.5,3.08885]
[1735760816069,10.4791964,3358.6,3357.8,3.2078]
[1735760816266,3.2078,3358.2,3357.4,3.2078]
[1735760816474,6.233,3358.2,3357.8,3.2078]
[1735760817170,6.233,3358.2,3357.4,3.2078]
[1735760817474,2.90414018,3357.9,3357.4,3.2078]
[1735760817971,0.4357,3357.8,3357.4,3.2078]
[1735760818169,2.90414018,3357.5,3356.9,3.2078]
[1735760818371,2.90414018,3357.5,3356.5,3.2078]
[1735760818569,7.90414018,3357.5,3356.5,3.2078]
[1735760819168,1.233,3357.7,3356.5,3.2078]
[1735760819474,1.233,3357.7,3357.5,3.2078]
[1735760819867,1.233,3357.7,3357.1,3.2078]
[1735760823470,0.4357,3357.8,3357.5,3.2078]
[1735760823667,0.4696,3358.2,3357.5,3.2078]
[1735760823866,0.4552,3358.9,3358.0,3.2078]
[1735760824066,0.4552,3358.9,3357.5,2.90414018]
[1735760824067,0.4552,3358.9,3358.5,3.2078]
[1735760824670,0.25281139,3358.6,3358.5,3.2078]
[1735760824876,0.01087729,3358.6,3358.5,3.2078]
[1735760827474,0.01087729,3358.6,3358.1,3.2078]
[1735760827682,8.21867729,3358.6,3357.7,3.2078]
[1735760827876,0.01087729,3358.6,3358.2,3.2078]
[1735760829373,3.2078,3360.4,3358.4,2.90414018]
[1735760829575,3.44684073,3360.4,3359.5,3.2078]
[1735760830074,2.90414018,3360.2,3359.5,3.2078]
[1735760830781,2.90414018,3359.8,3359.5,3.2078]
[1735760830975,3.2078,3359.6,3358.5,0.435]
[1735760831484,1.233,3359.6,3359.0,3.2078]
[1735760831874,2.90414018,3359.4,3359.0,3.2078]
[1735760832280,1.233,3359.6,3359.0,3.2078]
[1735760832583,1.233,3359.6,3359.4,3.2078]
[1735760832774,2.90414018,3359.8,3359.4,3.2078]
[1735760832977,4.13614018,3360.2,3359.4,3.2078]
[1735760833678,4.13614018,3360.2,3359.4,3.20267208]
[1735760833874,2.90414018,3359.8,3359.4,3.20267208]
[1735760834180,2.90414018,3359.8,3359.0,3.2078]
[1735760834676,2.90414018,3359.8,3359.4,3.2078]
[1735760835073,6.11194018,3359.8,3359.0,3.2078]
[1735760835270,2.90414018,3359.4,3359.0,3.2078]
[1735760836079,2.1116,3359.7,3359.0,3.2078]
[1735760836281,7.1116,3359.7,3359.0,3.2078]
[1735760838185,3.45133988,3360.2,3359.4,3.2078]
[1735760838386,1.27,3360.1,3359.4,3.2078]
[1735760840582,3.45133988,3360.2,3359.4,3.2078]
[1735760840781,8.45133988,3360.2,3359.4,3.2078]
[1735760841192,2.90414018,3359.9,3359.0,3.2078]
[1735760841493,3.2078,3359.7,3359.0,3.2078]
[1735760841888,2.90414018,3359.5,3359.0,3.2078]
[1735760842187,4.17314018,3359.5,3359.0,3.2078]
[1735760843189,2.90414018,3359.5,3359.0,3.2078]
[1735760843389,4.17314018,3359.5,3359.0,3.2078]
[1735760843784,4.17314018,3359.5,3358.2,0.4531]
[1735760843785,2.90414018,3359.1,3358.4,3.2078]
[1735760843988,0.4265,3359.0,3358.4,3.2078]
[1735760845694,3.2078,3359.2,3358.4,3.2078]
[1735760845894,3.2078,3359.2,3358.5,0.4692]
[1735760846191,2.90414018,3359.1,3358.5,0.4692]
[1735760847292,2.90414018,3359.1,3358.4,3.2078]
[1735760847689,2.90414018,3358.7,3358.4,3.2078]
[1735760847994,4.17314018,3358.7,3358.4,3.2078]
[1735760849197,1.269,3358.7,3358.4,3.2078]
[1735760849492,2.90414018,3359.1,3358.4,3.2078]
[1735760850290,0.4265,3359.4,3358.8,3.2078]
[1735760850482,0.4265,3359.4,3359.2,3.2078]
[1735760850685,1.269,3359.5,3359.2,3.2078]
[1735760851495,4.17314018,3359.5,3359.2,3.2078]
[1735760853395,2.90414018,3359.5,3359.2,3.2078]
[1735760855293,4.35473872,3359.8,3359.2,3.2078]
[1735760855493,3.2078,3359.8,3359.3,0.4652]
[1735760855697,3.2078,3359.8,3359.4,0.4669]
[1735760857292,1.51313157,3360.1,3359.4,0.4669]
[1735760857494,0.24413157,3360.1,3359.6,3.2078]
[1735760857798,2.90414018,3360.3,3359.6,3.2078]
[1735760857995,2.90414018,3360.3,3360.0,3.2078]
[1735760858298,2.90414018,3360.3,3359.6,3.2078]
[1735760859603,3.14646675,3360.3,3359.6,3.2078]
[1735760860195,0.24232657,3360.3,3360.0,3.2078]
[1735760860499,0.8978,3360.6,3360.0,3.2078]
[1735760860899,2.90414018,3360.3,3360.0,3.2078]
[1735760861403,0.8978,3360.6,3360.0,3.2078]
[1735760861404,2.1668,3360.6,3360.0,3.2078]
[1735760861702,1.7136,3360.6,3360.0,3.2078]
[1735760861903,1.269,3360.6,3360.1,0.4471]
[1735760862203,1.269,3360.6,3360.2,0.4228]
[1735760862597,2.25196579,3360.7,3360.2,0.4228]
[1735760862799,0.23894135,3361.0,3360.5,3.2078]
[1735760863101,2.25196579,3361.3,3360.5,3.2078]
[1735760863302,2.25196579,3361.3,3360.9,3.2078]
[1735760863303,2.49442028,3361.3,3360.9,3.2078]
[1735760864205,0.24245449,3361.3,3360.9,3.2078]
[1735760864402,2.8984727,3361.4,3360.9,3.2078]
[1735760864609,2.8984727,3361.4,3361.0,0.4515]
[1735760864799,2.8984727,3361.4,3361.1,0.4572]
[1735760865196,2.8984727,3361.4,3360.9,3.2078]
[1735760867706,0.24652107,3361.8,3361.3,3.2078]
[1735760867903,2.8984727,3362.2,3361.3,3.2078]
[1735760868107,3.3462727,3362.2,3361.4,0.4636]
[1735760868300,3.3462727,3362.2,3361.4,0.9107]
[1735760868506,3.58700038,3362.2,3361.4,0.9107]
[1735760868698,3.58700038,3362.2,3361.7,3.2078]
[1735760871615,2.8984727,3361.8,3361.4,0.9107]
[1735760872615,2.8984727,3361.8,3360.4,3.20916]
[1735760872616,3.2078,3361.5,3360.9,3.2078]
[1735760872815,2.8984727,3361.0,3360.9,3.2078]
[1735760873013,2.8984727,3361.0,3360.5,3.2078]
[1735760874122,3.3325727,3361.4,3360.5,3.2078]
[1735760874316,3.2078,3361.5,3360.5,3.2078]
[1735760874317,3.2078,3361.5,3360.9,3.2078]
[1735760874524,2.8984727,3361.8,3361.3,3.2078]
[1735760875020,1.248,3362.0,3361.3,3.2078]
[1735760875526,1.248,3362.0,3361.4,0.9009]
[1735760875823,0.67281062,3362.1,3361.4,0.9009]
[1735760876026,0.4266,3362.1,3361.4,0.9009]
[1735760876521,1.248,3362.3,3361.4,0.9009]
[1735760877519,2.8984727,3362.2,3361.4,0.9009]
[1735760878528,2.8984727,3361.8,3361.3,3.2078]
[1735760878920,0.446,3361.7,3361.3,3.2078]
[1735760880722,3.2078,3362.0,3361.3,3.2078]
[1735760882231,3.2078,3362.0,3361.3,3.2062]
[1735760883833,18.7215798,3363.0,3361.8,3.2078]
[1735760884031,2.1619,3362.9,3362.2,3.2078]
[1735760884224,9.75100283,3362.9,3362.2,3.2078]
[1735760885125,0.4531,3362.8,3362.2,3.2078]
[1735760886228,0.4531,3362.8,3361.6,0.4358]
[1735760886229,0.9139,3362.9,3362.7,3.2078]
[1735760886429,12.85842249,3363.0,3362.7,3.2078]
[1735760886635,10.8993071,3363.0,3362.8,0.4265]
[1735760886934,10.8993071,3363.0,3362.8,1.3009]
[1735760887727,0.24052114,3363.8,3362.8,0.8567]
[1735760887728,4.38699384,3363.8,3362.8,0.8567]
[1735760887924,4.1464727,3363.8,3362.8,0.8567]
[1735760888240,0.24227466,3364.0,3363.7,5.45325172]
[1735760888429,3.2078,3365.7,3363.7,5.45325172]
[1735760888623,2.24545172,3365.6,3364.4,3.2078]
[1735760888830,3.15385172,3365.6,3364.4,3.2078]
[1735760889130,4.40185172,3365.6,3364.4,3.2078]
[1735760890030,0.42402719,3364.5,3364.4,8.2078]
[1735760890226,0.4609,3365.6,3364.4,12.64241575]
[1735760890429,0.4609,3365.6,3365.1,3.2078]
[1735760891328,3.2078,3366.1,3365.1,8.2078]
[1735760891735,0.23615605,3366.4,3365.9,3.2078]
[1735760892035,3.2078,3367.1,3366.3,3.2078]
[1735760892629,3.2078,3367.1,3366.7,3.2078]
[1735760893725,2.88981575,3366.9,3365.9,3.2078]
[1735760893930,3.2078,3366.7,3365.9,3.2078]
[1735760894328,2.88981575,3366.0,3365.1,3.2078]
[1735760894533,3.2078,3365.8,3365.1,3.2078]
[1735760895826,4.13681575,3366.0,3365.1,3.2078]
[1735760896930,3.32071575,3366.0,3365.1,3.2078]
[1735760897232,4.56771575,3366.0,3365.1,3.2078]
[1735760897432,2.88981575,3365.2,3365.1,3.2078]
[1735760897641,7.34461575,3365.2,3364.0,3.2078]
[1735760897831,6.09761575,3364.8,3364.0,3.2078]
[1735760898732,2.88981575,3364.4,3364.0,3.2078]
[1735760898928,2.88981575,3364.4,3363.6,0.3358]
[1735760898929,6.09761575,3364.4,3363.6,3.2078]
[1735760899135,3.2078,3364.4,3363.6,3.2078]
[1735760900139,6.09761575,3364.4,3363.6,3.2078]
[1735760900735,2.88981575,3364.0,3363.6,3.2078]
[1735760901143,6.09761575,3364.0,3363.2,3.2078]
[1735760901337,2.88981575,3363.6,3363.2,3.2078]
[1735760901844,6.09761575,3363.6,3362.8,3.2078]
[1735760903239,0.4326,3363.9,3363.5,3.2078]
[1735760904041,3.2078,3364.2,3363.5,3.2078]
[1735760905045,1.7009,3364.7,3364.0,3.2078]
[1735760905539,1.7009,3364.7,3363.2,0.2979]
[1735760905540,0.4539,3364.7,3364.4,3.2078]
[1735760905946,1.6996,3365.1,3364.4,3.2078]
[1735760907050,0.4236,3365.0,3364.4,3.2078]
[1735760907448,2.88981575,3365.2,3364.4,3.2078]
[1735760907653,3.2078,3365.3,3364.4,3.2078]
[1735760908347,0.00282641,3364.8,3364.4,3.2078]
[1735760909249,0.00282641,3364.8,3364.4,8.2078]
[1735760909648,0.00282641,3364.8,3364.4,8.5056]
[1735760910548,0.00282641,3364.8,3364.4,3.2078]
[1735760918255,0.00282641,3364.8,3364.4,8.2078]
[1735760918459,3.2078,3365.9,3364.5,2.911]
[1735760918662,0.8966,3366.1,3365.4,3.2078]
[1735760920459,5.8966,3366.1,3365.4,3.2078]
[1735760920860,0.8966,3366.1,3365.4,3.2078]
[1735760921060,5.8966,3366.1,3365.4,3.2078]
[1735760921463,0.8966,3366.1,3365.4,3.2078]
[1735760925164,3.2078,3365.8,3364.8,3.2078]
[1735760925369,3.2078,3365.4,3364.8,3.2078]
[1735760925665,6.48745647,3365.4,3364.8,3.2078]
[1735760925964,6.48745647,3364.9,3364.0,3.2078]
[1735760926165,7.32437573,3365.3,3362.5,10.72165647]
[1735760926166,3.2078,3364.3,3363.5,3.2078]
[1735760926365,0.4581,3364.2,3363.5,3.2078]
[1735760926662,1.247,3364.1,3363.5,3.2078]
[1735760928367,2.89434649,3363.6,3363.1,3.2078]
[1735760928769,2.89434649,3364.0,3363.5,3.2078]
[1735760929668,2.89434649,3363.6,3363.1,3.2078]
[1735760931664,4.4548,3363.9,3363.1,3.2078]
[1735760931868,4.4548,3363.9,3362.6,40.8]
[1735760931869,1.7051,3364.2,3363.5,3.2078]
[1735760933965,3.2078,3364.3,3363.5,3.2078]
[1735760934173,4.4548,3364.7,3364.0,3.2078]
[1735760934372,1.347,3364.8,3364.4,3.2078]
[1735760934672,1.347,3364.8,3364.4,2.2078]
[1735760935771,3.2078,3365.2,3364.4,2.2078]
[1735760935973,1.247,3365.7,3365.0,3.2078]
[1735760936168,1.247,3365.8,3365.0,3.2078]
[1735760938978,2.89434649,3365.5,3365.0,3.2078]
[1735760939182,2.89434649,3365.5,3364.6,0.428]
[1735760939370,2.89434649,3365.1,3364.5,3.2078]
[1735760939578,6.10214649,3365.1,3364.5,3.2078]
[1735760940375,6.10214649,3364.7,3364.0,3.2078]
[1735760942176,2.89434649,3364.7,3364.6,3.2078]
[1735760942379,2.89434649,3364.7,3363.7,0.29786]
[1735760942380,2.89434649,3364.7,3364.0,3.2078]
[1735760942684,2.5873,3365.0,3364.4,3.2078]
[1735760943384,2.89434649,3364.7,3364.4,3.2078]
[1735760943583,6.10214649,3364.7,3363.9,3.2078]
[1735760943883,3.2078,3364.7,3363.9,3.2078]
[1735760944594,1.247,3365.9,3364.4,3.2078]
[1735760944885,2.89434649,3365.2,3364.8,3.2078]
[1735760945079,6.10214649,3365.2,3364.3,3.2078]
[1735760946682,0.75884236,3366.2,3365.0,3.2078]
[1735760946683,1.6837,3365.3,3365.0,3.2078]
[1735760946878,0.4367,3365.3,3365.0,3.2078]
[1735760947278,2.89434649,3365.6,3365.0,3.2078]
[1735760947582,0.4367,3365.9,3365.0,3.2078]
[1735760947786,0.4367,3365.9,3365.1,0.4294]
[1735760948283,12.67624478,3366.9,3365.8,3.2078]
[1735760948284,2.89434649,3366.4,3365.8,3.2078]
[1735760948784,0.4274,3366.3,3365.8,3.2078]
[1735760949882,3.2078,3366.6,3365.8,3.2078]
[1735760951483,2.89434649,3366.4,3365.8,3.2078]
[1735760952482,2.89434649,3366.4,3365.4,3.2078]
[1735760952879,2.89434649,3366.0,3365.4,3.2078]
[1735760953284,0.8866,3365.9,3365.4,3.2078]
[1735760953480,2.89434649,3365.6,3365.4,3.2078]
[1735760953677,2.89434649,3365.6,3365.0,3.2078]
[1735760956689,3.2078,3365.8,3365.0,3.2078]
[1735760957082,3.2078,3365.8,3365.1,0.4373]
[1735760957687,2.89434649,3365.6,3365.0,3.2078]
[1735760957892,3.2078,3365.8,3365.0,3.2078]
[1735760958694,1.329,3365.9,3365.4,3.2078]
[1735760959789,0.8866,3365.9,3365.4,3.2078]
[1735760960093,1.248,3366.1,3365.8,3.2078]
[1735760961087,3.33914649,3366.4,3365.8,3.2078]
[1735760962491,3.2078,3366.6,3365.8,3.2078]
[1735760962688,3.2078,3366.6,3365.9,0.4277]
[1735760965692,6.10214649,3366.6,3365.9,0.4277]
[1735760965997,6.10214649,3366.6,3365.8,3.2078]
[1735760966392,6.10214649,3366.6,3365.3,0.4443]
[1735760966393,2.89434649,3366.2,3365.3,0.4443]
[1735760966591,0.8683,3366.1,3365.5,3.2078]
[1735760967487,0.4284,3366.0,3365.5,3.2078]
[1735760967795,6.10214649,3365.8,3364.7,3.2078]
[1735760968095,6.10214649,3365.8,3364.0,3.302]
[1735760968096,3.2078,3364.8,3364.3,3.2078]
[1735760968293,0.4329,3364.7,3364.3,3.2078]
[1735760968889,0.4329,3364.7,3362.0,0.2976]
[1735760968890,2.89434649,3364.6,3363.9,3.2078]
[1735760969399,7.89434649,3364.6,3363.9,3.2078]
[1735760969699,2.89434649,3364.6,3363.9,3.2078]
[1735760969900,0.4329,3364.7,3363.9,3.2078]
[1735760970596,2.89434649,3364.6,3363.9,3.2078]
[1735760972096,2.89434649,3364.2,3363.9,3.2078]
[1735760972401,4.14234649,3364.2,3363.9,3.2078]
[1735760973202,12.35014649,3364.2,3363.4,3.2078]
[1735760973393,2.89434649,3363.8,3363.4,3.2078]
[1735760974197,0.4613,3363.7,3363.4,3.2078]
[1735760974408,0.9236,3363.7,3363.0,3.2078]
[1735760976601,1.3737,3363.7,3363.0,3.2078]
[1735760977102,6.10214649,3363.4,3362.5,3.2078]
[1735760977300,2.89434649,3363.0,3362.5,3.2078]
[1735760979304,3.2078,3363.4,3362.5,3.2078]
[1735760979489,1.3737,3363.7,3362.9,3.2078]
[1735760979490,0.9236,3363.7,3362.9,3.2078]
[1735760979697,0.9236,3363.7,3363.4,3.2078]
[1735760981003,1.249,3364.1,3363.4,3.2078]
[1735760981903,3.2078,3364.0,3363.4,3.2078]
[1735760985505,2.89434649,3363.8,3362.8,3.2078]
[1735760985702,0.4384,3363.7,3362.8,3.2078]
[1735760987001,2.89434649,3363.4,3362.8,3.2078]
[1735760987301,0.4353,3363.3,3362.8,3.2078]
[1735760987608,0.8943,3363.3,3362.8,3.2078]
[1735760989406,2.89434649,3363.0,3362.8,3.2078]
[1735760990298,0.8943,3363.3,3362.8,3.2078]
[1735760990701,1.243,3363.4,3362.8,3.2078]
[1735760990905,4.13734649,3363.4,3362.8,3.2078]
[1735760993407,2.89434649,3363.0,3362.8,3.2078]
[1735760998005,2.89434649,3363.0,3362.4,3.2078]
[1735760998208,2.89434649,3362.6,3362.4,3.2078]
[1735761000515,1.243,3362.7,3362.4,3.2078]
[1735761001611,1.243,3362.9,3362.4,3.2078]
[1735761002106,3.2078,3363.2,3362.4,3.2078]
[1735761002309,3.2078,3363.6,3362.9,3.2078]
[1735761002715,3.2078,3363.6,3363.0,0.4649]
[1735761003218,6.10214649,3363.6,3363.0,0.4649]
[1735761004614,6.10214649,3363.6,3362.9,3.2078]
[1735761005514,6.10214649,3363.6,3363.0,0.4667]
[1735761006216,6.10214649,3363.6,3362.9,3.2078]
[1735761006412,2.89434649,3363.2,3362.9,3.2078]
[1735761006612,1.243,3363.1,3362.5,3.2078]
[1735761007017,2.89434649,3362.8,3362.5,3.2078]
[1735761007416,0.4626,3362.7,3362.2,0.4667]
[1735761009216,1.7056,3362.7,3362.2,0.4667]
[1735761009914,1.243,3362.7,3362.2,0.4667]
[1735761010113,4.4508,3362.8,3362.2,0.4667]
[1735761011318,0.4633,3363.1,3362.5,3.2078]
[1735761011516,1.243,3363.2,3362.5,3.2078]
[1735761012721,4.13734649,3363.2,3362.5,3.2078]
[1735761013023,4.60184649,3363.2,3362.5,3.2078]
[1735761014323,3.95571076,3363.2,3362.5,3.2078]
[1735761015020,2.24821076,3362.9,3362.5,3.2078]
[1735761015910,2.24821076,3362.6,3362.5,3.2078]
[1735761016318,2.24821076,3362.6,3362.1,3.2078]
[1735761016517,2.24821076,3362.3,3362.1,3.2078]
[1735761016925,5.45601076,3362.3,3361.7,3.2078]
[1735761017220,5.45601076,3362.3,3361.5,0.4604]
[1735761017421,6.35621076,3362.3,3361.5,0.4604]
[1735761018917,2.24821076,3362.3,3362.0,3.2078]
[1735761019119,1.243,3362.5,3362.0,3.2078]
[1735761019428,2.24821076,3362.4,3362.0,3.2078]
[1735761020217,1.243,3362.5,3362.0,3.2078]
[1735761020621,14.82052115,3362.8,3362.0,3.2078]
[1735761021427,3.2078,3362.8,3362.0,3.2078]
[1735761022523,2.24821076,3362.7,3362.0,3.2078]
[1735761023722,3.49121076,3362.7,3362.0,3.2078]
[1735761023919,3.2078,3362.8,3362.0,8.2078]
[1735761024228,3.2078,3362.8,3362.0,10.75402076]
[1735761024525,3.2078,3362.8,3362.0,51.55402076]
[1735761025223,3.2078,3362.8,3362.0,10.45601076]
[1735761025424,3.2078,3362.8,3362.0,8.2078]
[1735761025716,3.2078,3362.8,3362.0,3.2078]
[1735761026428,3.2078,3362.8,3362.0,8.2078]
[1735761026720,3.2078,3362.8,3362.0,10.75402076]
[1735761027625,3.2078,3362.8,3362.0,10.45601076]
[1735761028332,3.2078,3362.8,3362.0,10.75403076]
[1735761028631,11.61272115,3363.1,3362.7,3.2078]
[1735761028923,11.61272115,3363.1,3362.8,0.4454]
[1735761029632,11.61272115,3363.1,3362.9,2.24821076]
[1735761029833,3.2078,3363.6,3362.9,0.3916]
[1735761031032,3.2078,3363.6,3363.1,3.2078]
[1735761032235,2.24821076,3363.5,3363.1,3.2078]
[1735761035036,3.12581076,3363.5,3363.1,3.2078]
[1735761035533,2.24821076,3363.5,3363.1,3.2078]
[1735761036629,2.24821076,3363.2,3363.1,3.2078]
[1735761037838,2.67631076,3363.5,3363.1,3.2078]
[1735761041431,0.4281,3363.5,3363.1,3.2078]
[1735761041630,3.2078,3363.6,3363.1,3.2078]
[1735761041836,0.8567,3364.0,3363.5,3.2078]
[1735761042036,0.8567,3364.0,3363.9,3.2078]
[1735761042336,0.8567,3364.0,3363.5,3.2078]
[1735761042832,5.45601076,3363.8,3363.0,3.2078]
[1735761043036,0.4392,3363.7,3363.0,3.2078]
[1735761043240,1.6812,3363.7,3363.0,3.2078]
[1735761043729,2.24821076,3363.5,3363.0,3.2078]
[1735761043931,2.24821076,3363.2,3363.0,3.2078]
[1735761044137,2.24821076,3363.2,3362.6,3.2078]
[1735761044138,0.4471,3363.1,3362.6,3.2078]
[1735761044435,2.24821076,3362.8,3362.6,3.2078]
[1735761045438,2.24821076,3362.8,3362.1,3.2078]
[1735761045639,2.24821076,3362.2,3362.1,3.2078]
[1735761046332,3.12131076,3362.2,3362.1,3.2078]
[1735761046932,0.8731,3362.2,3362.1,3.2078]
[1735761049435,4.4518,3362.6,3362.1,3.2078]
[1735761056643,2.8956212,3362.4,3361.7,3.2078]
[1735761057244,4.4518,3362.6,3361.7,3.2078]